fUST/lending_fUST_20241014
["ID","MTS","AMOUNT","RATE_DAILY","PERIOD"]
[340234295,1728888644175,-158.844224,0.00024424,7]
[340234296,1728888644184,-158.844224,0.00024424,7]
[340234297,1728888644193,-151.0,0.00024424,7]
[340234298,1728888644202,-151.0,0.00024424,7]
[340234299,1728888644212,-151.0,0.00024424,7]
[340234300,1728888644222,-151.0,0.00024424,2]
[340234301,1728888644231,-151.0,0.00024424,7]
[340234302,1728888644318,-151.0,0.00024424,7]
[340234303,1728888644329,-151.0,0.00024424,7]
[340234304,1728888644339,-151.0,0.00024424,7]
[340234305,1728888644349,-151.0,0.00024424,7]
[340234306,1728888644359,-151.0,0.00024424,7]
[340234307,1728888644369,-151.0,0.00024424,7]
[340234308,1728888644379,-151.0,0.00024424,7]
[340234309,1728888644389,-151.0,0.00024424,7]
[340234310,1728888644399,-151.0,0.00024424,7]
[340234311,1728888644408,-151.0,0.00024424,7]
[340234312,1728888644417,-153.644087,0.00024424,7]
[340234313,1728888644426,-223.310518,0.00024424,7]
[340234314,1728888644435,-151.0,0.00024424,7]
[340234315,1728888644444,-151.0,0.00024424,7]
[340234316,1728888644453,-151.0,0.00024424,7]
[340234317,1728888644463,-151.0,0.00024424,7]
[340234318,1728888644473,-250.0,0.00024426,2]
[340234319,1728888644483,-132693.57683694,0.00024434,2]
[340234320,1728888644493,-160.0,0.00024434,2]
[340234321,1728888644503,-33481.31859664,0.00024434,2]
[340234322,1728888644512,-151.0,0.00024434,7]
[340234323,1728888644522,-151.0,0.00024434,7]
[340234324,1728888644532,-151.0,0.00024434,7]
[340234325,1728888644541,-151.0,0.00024434,7]
[340234326,1728888644551,-151.0,0.00024434,7]
[340234327,1728888644560,-158.844224,0.00024434,7]
[340234328,1728888644570,-158.844224,0.00024434,7]
[340234329,1728888644582,-151.0,0.00024434,7]
[340234330,1728888644593,-151.0,0.00024434,7]
[340234331,1728888644602,-151.0,0.00024434,7]
[340234332,1728888644612,-151.0,0.00024434,2]
[340234333,1728888644621,-151.0,0.00024434,7]
[340234334,1728888644631,-151.0,0.00024434,7]
[340234335,1728888644644,-151.0,0.00024434,7]
[340234336,1728888644655,-151.0,0.00024434,7]
[340234337,1728888644664,-151.0,0.00024434,7]
[340234338,1728888644674,-151.0,0.00024434,7]
[340234339,1728888644683,-151.0,0.00024434,7]
[340234340,1728888644694,-151.0,0.00024434,7]
[340234341,1728888644703,-151.0,0.00024434,7]
[340234342,1728888644713,-151.0,0.00024434,7]
[340234343,1728888644722,-151.0,0.00024434,7]
[340234344,1728888644731,-151.0,0.00024434,7]
[340234345,1728888644741,-151.0,0.00024434,7]
[340234346,1728888644750,-151.0,0.00024434,7]
[340234347,1728888644759,-151.0,0.00024434,7]
[340234348,1728888644768,-151.0,0.00024434,7]
[340234349,1728888644778,-151.0,0.00024434,7]
[340234350,1728888644787,-151.0,0.00024434,7]
[340234351,1728888644796,-3393.716704,0.00024434,7]
[340234352,1728888644806,-151.0,0.00024434,7]
[340234353,1728888644815,-3393.716704,0.00024434,7]
[340234354,1728888644824,-151.0,0.00024434,7]
[340234355,1728888644833,-151.0,0.00024434,7]
[340234356,1728888644842,-151.0,0.00024434,7]
[340234357,1728888644851,-151.0,0.00024434,7]
[340234358,1728888644861,-500.0,0.00024473,2]
[340234359,1728888644870,-503.28414625,0.00024473,2]
[340234360,1728888644880,-500.0,0.00024473,2]
[340234361,1728888644889,-500.0,0.00024473,2]
[340234362,1728888644899,-583.25198616,0.00024473,2]
[340234363,1728888644908,-250.0,0.0002449,2]
[340234364,1728888644919,-413.9247816,0.000245,2]
[340234365,1728888644928,-250.0,0.00024555,2]
[340234366,1728888644939,-250.0,0.0002462,2]
[340234367,1728888644948,-10271.3221571,0.00024637,3]
[340234368,1728888644958,-10271.3221571,0.00024647,3]
[340234369,1728888644968,-151.0,0.00024647,7]
[340234370,1728888644978,-151.0,0.00024647,7]
[340234371,1728888644987,-238.608718,0.00024647,7]
[340234372,1728888644996,-158.844224,0.00024647,7]
[340234373,1728888645006,-158.844224,0.00024647,7]
[340234374,1728888645015,-151.0,0.00024647,7]
[340234375,1728888645025,-151.0,0.00024647,7]
[340234376,1728888645035,-151.0,0.00024647,7]
[340234377,1728888645044,-151.0,0.00024647,7]
[340234378,1728888645053,-151.0,0.00024647,7]
[340234379,1728888645062,-151.0,0.00024647,7]
[340234380,1728888645071,-151.0,0.00024647,7]
[340234381,1728888645080,-151.0,0.00024647,7]
[340234382,1728888645089,-151.0,0.00024647,7]
[340234383,1728888645099,-151.0,0.00024647,7]
[340234384,1728888645108,-151.0,0.00024647,7]
[340234385,1728888645117,-151.0,0.00024647,7]
[340234386,1728888645127,-151.0,0.00024647,7]
[340234387,1728888645137,-500.0,0.00024657,2]
[340234388,1728888645146,-500.0,0.00024657,2]
[340234389,1728888645155,-500.0,0.00024657,2]
[340234390,1728888645164,-500.0,0.00024657,2]
[340234391,1728888645173,-503.07863179,0.00024657,2]
[340234392,1728888645183,-500.0,0.00024657,2]
[340234393,1728888645193,-500.0,0.00024657,2]
[340234394,1728888645202,-500.0,0.00024657,2]
[340234395,1728888645211,-500.0,0.00024657,2]
[340234396,1728888645221,-500.0,0.00024657,2]
[340234397,1728888645230,-500.0,0.00024657,2]
[340234398,1728888645239,-851.16,0.00024657,2]
[340234399,1728888645248,-500.0,0.00024657,2]
[340234400,1728888645258,-504.89448987,0.00024657,2]
[340234401,1728888645267,-500.0,0.00024657,2]
[340234402,1728888645276,-1000.0,0.00024657,2]
[340234403,1728888645285,-500.0,0.00024657,2]
[340234404,1728888645294,-509.31,0.00024657,2]
[340234405,1728888645304,-500.0,0.00024657,2]
[340234406,1728888645313,-500.0,0.00024657,2]
[340234407,1728888645323,-500.0,0.00024657,2]
[340234408,1728888645332,-500.0,0.00024657,2]
[340234409,1728888645342,-500.0,0.00024657,2]
[340234410,1728888645351,-500.0,0.00024657,2]
[340234411,1728888645361,-174.80412032,0.00024657,2]
[340234412,1728888645370,-500.0,0.00024657,2]
[340234413,1728888645380,-436.01561827,0.00024657,2]
[340234414,1728888645389,-500.0,0.00024657,2]
[340234415,1728888645399,-1255.23,0.00024657,2]
[340234416,1728888645408,-520.09341354,0.00024657,2]
[340234417,1728888645417,-519.93491605,0.00024657,2]
[340234418,1728888645428,-500.0,0.00024657,2]
[340234419,1728888645437,-500.0,0.00024657,2]
[340234420,1728888645446,-500.0,0.00024657,2]
[340234421,1728888645456,-627.97372355,0.00024657,2]
[340234422,1728888645465,-500.0,0.00024657,2]
[340234423,1728888645475,-500.0,0.00024657,2]
[340234424,1728888645484,-500.0,0.00024657,2]
[340234425,1728888645493,-500.0,0.00024657,2]
[340234426,1728888645503,-2000.0,0.00024657,2]
[340234427,1728888645512,-500.0,0.00024657,2]
[340234428,1728888645521,-500.0,0.00024657,2]
[340234429,1728888645530,-500.0,0.00024657,2]
[340234430,1728888645540,-500.0,0.00024657,2]
[340234431,1728888645550,-500.0,0.00024657,2]
[340234432,1728888645561,-500.0,0.00024657,2]
[340234433,1728888645571,-502.5897503,0.00024657,2]
[340234434,1728888645582,-500.0,0.00024657,2]
[340234435,1728888645592,-7551.44,0.00024657,2]
[340234436,1728888645603,-500.0,0.00024657,2]
[340234437,1728888645613,-1500.0,0.00024657,2]
[340234438,1728888645623,-500.0,0.00024657,2]
[340234439,1728888645633,-151.0,0.00024657,7]
[340234440,1728888645642,-500.0,0.00024657,2]
[340234441,1728888645651,-500.0,0.00024657,2]
[340234442,1728888645661,-500.0,0.00024657,2]
[340234443,1728888645670,-500.0,0.00024657,2]
[340234444,1728888645679,-500.0,0.00024657,2]
[340234445,1728888645689,-1765.14,0.00024657,2]
[340234446,1728888645698,-151.0,0.00024657,7]
[340234447,1728888645707,-151.0,0.00024657,7]
[340234448,1728888645716,-503.62579735,0.00024657,2]
[340234449,1728888645724,-778.33,0.00024657,2]
[340234450,1728888645735,-151.0,0.00024657,7]
[340234451,1728888645744,-500.0,0.00024657,2]
[340234452,1728888645753,-500.0,0.00024657,2]
[340234453,1728888645762,-151.0,0.00024657,7]
[340234455,1728888645771,-500.0,0.00024657,2]
[340234456,1728888645780,-500.0,0.00024657,2]
[340234457,1728888645789,-609.12,0.00024657,2]
[340234458,1728888645798,-500.0,0.00024657,2]
[340234459,1728888645807,-500.0,0.00024657,2]
[340234460,1728888645816,-194.19284636,0.00024657,2]
[340234461,1728888645825,-500.0,0.00024657,2]
[340234462,1728888645835,-500.0,0.00024657,2]
[340234463,1728888645909,-4824.09,0.00024657,2]
[340234464,1728888645920,-500.0,0.00024657,2]
[340234465,1728888645929,-500.0,0.00024657,2]
[340234466,1728888645938,-500.0,0.00024657,2]
[340234467,1728888645947,-500.0,0.00024657,2]
[340234468,1728888645958,-500.0,0.00024657,2]
[340234470,1728888645967,-500.0,0.00024657,2]
[340234471,1728888645976,-500.0,0.00024657,2]
[340234472,1728888645987,-500.0,0.00024657,2]
[340234473,1728888645996,-500.0,0.00024657,2]
[340234474,1728888646006,-500.0,0.00024657,2]
[340234475,1728888646015,-500.0,0.00024657,2]
[340234476,1728888646024,-500.0,0.00024657,2]
[340234477,1728888646033,-569.50436133,0.00024657,2]
[340234478,1728888646042,-500.0,0.00024657,2]
[340234479,1728888646051,-168.490775,0.00024657,7]
[340234481,1728888646061,-500.0,0.00024657,2]
[340234482,1728888646070,-500.0,0.00024657,2]
[340234483,1728888646079,-5430.08,0.00024657,2]
[340234484,1728888646088,-151.0,0.00024657,7]
[340234485,1728888646096,-2965.86,0.00024657,2]
[340234486,1728888646105,-500.0,0.00024657,2]
[340234487,1728888646114,-500.0,0.00024657,2]
[340234488,1728888646123,-500.0,0.00024657,2]
[340234489,1728888646133,-500.0,0.00024657,2]
[340234490,1728888646142,-500.0,0.00024657,2]
[340234491,1728888646151,-151.0,0.00024657,7]
[340234492,1728888646160,-30352.2,0.00024657,2]
[340234493,1728888646169,-151.0,0.00024657,7]
[340234494,1728888646178,-225.6502853,0.00024657,2]
[340234495,1728888646187,-500.0,0.00024657,2]
[340234496,1728888646196,-500.0,0.00024657,2]
[340234497,1728888646206,-500.0,0.00024657,2]
[340234498,1728888646215,-1259.99,0.00024657,2]
[340234499,1728888646225,-151.0,0.00024657,7]
[340234500,1728888646234,-1377.9,0.00024657,2]
[340234501,1728888646243,-500.0,0.00024657,2]
[340234502,1728888646252,-151.0,0.00024657,7]
[340234504,1728888646261,-500.0,0.00024657,2]
[340234505,1728888646270,-500.0,0.00024657,2]
[340234506,1728888646279,-3393.716704,0.00024657,7]
[340234507,1728888646289,-2017.69,0.00024657,2]
[340234508,1728888646298,-151.0,0.00024657,7]
[340234509,1728888646307,-3393.716704,0.00024657,7]
[340234510,1728888646316,-151.0,0.00024657,7]
[340234511,1728888646325,-500.0,0.00024657,2]
[340234512,1728888646334,-500.0,0.00024657,2]
[340234513,1728888646343,-500.0,0.00024657,2]
[340234514,1728888646353,-500.0,0.00024657,2]
[340234515,1728888646362,-207.68312,0.00024657,7]
[340234516,1728888646371,-545.86,0.00024657,2]
[340234517,1728888646381,-250.0,0.00024657,2]
[340234518,1728888646390,-500.0,0.00024657,2]
[340234519,1728888646399,-500.0,0.00024657,2]
[340234520,1728888646409,-151.0,0.00024657,7]
[340234521,1728888646419,-151.0,0.00024657,7]
[340234522,1728888646428,-942.06,0.00024657,2]
[340234523,1728888646437,-660.0,0.00024658,2]
[340234524,1728888646446,-380.0,0.00024658,2]
[340234525,1728888646455,-444.58082158,0.00024658,2]
[340234526,1728888646465,-151.0,0.0002467,7]
[340234527,1728888646475,-151.0,0.0002467,7]
[340234528,1728888646484,-151.0,0.0002467,7]
[340234529,1728888646493,-151.0,0.0002467,7]
[340234530,1728888646501,-151.0,0.0002467,7]
[340234531,1728888646511,-151.0,0.0002467,7]
[340234532,1728888646520,-151.0,0.0002467,3]
[340234533,1728888646529,-151.0,0.0002467,7]
[340234534,1728888646538,-151.0,0.0002467,7]
[340234535,1728888646548,-151.989111,0.0002467,7]
[340234536,1728888646559,-151.0,0.0002467,7]
[340234537,1728888646568,-151.0,0.0002467,5]
[340234538,1728888646578,-151.0,0.0002467,7]
[340234539,1728888646587,-229.374882,0.0002467,7]
[340234540,1728888646596,-151.0,0.0002467,7]
[340234541,1728888646605,-151.0,0.0002467,7]
[340234542,1728888646614,-151.0,0.0002467,7]
[340234543,1728888646623,-151.0,0.0002467,7]
[340234544,1728888646633,-151.0,0.0002467,7]
[340234545,1728888646644,-151.0,0.0002467,7]
[340234546,1728888646654,-156.539686,0.0002467,7]
[340234547,1728888646664,-151.0,0.0002467,7]
[340234548,1728888646674,-155.60901,0.0002467,7]
[340234549,1728888646684,-151.0,0.0002467,7]
[340234550,1728888646694,-151.0,0.0002467,7]
[340234551,1728888646702,-158.844224,0.0002467,7]
[340234552,1728888646711,-158.844224,0.0002467,7]
[340234553,1728888646721,-230.963236,0.0002467,7]
[340234554,1728888646730,-162.177276,0.0002467,7]
[340234555,1728888646739,-500.0,0.00024673,2]
[340234556,1728888646748,-500.0,0.00024673,2]
[340234557,1728888646757,-502.52059306,0.00024673,2]
[340234558,1728888646766,-572.95506977,0.00024673,2]
[340234559,1728888646776,-399.23011131,0.00024673,2]
[340234560,1728888646785,-180.11866234,0.00024673,2]
[340234561,1728888646794,-500.0,0.00024673,2]
[340234562,1728888646803,-500.0,0.00024673,2]
[340234563,1728888646812,-500.0,0.00024673,2]
[340234564,1728888646821,-161.71864082,0.00024673,2]
[340234565,1728888646830,-500.0,0.00024673,2]
[340234566,1728888646840,-500.0,0.00024673,2]
[340234567,1728888646849,-312.16204734,0.00024673,2]
[340234568,1728888646858,-500.0,0.00024673,2]
[340234569,1728888646866,-550.787561,0.00024673,2]
[340234570,1728888646875,-201.88379788,0.00024673,2]
[340234571,1728888646885,-631.05790938,0.00024673,2]
[340234572,1728888646894,-500.0,0.00024673,2]
[340234573,1728888646903,-500.0,0.00024673,2]
[340234574,1728888646913,-262.32444261,0.00024673,2]
[340234575,1728888646922,-200.27674956,0.00024673,2]
[340234576,1728888646931,-500.0,0.00024673,2]
[340234577,1728888646940,-151.0,0.00024673,7]
[340234578,1728888646949,-166.1,0.00024673,7]
[340234579,1728888646960,-151.0,0.00024673,7]
[340234580,1728888646969,-3393.716704,0.00024673,7]
[340234581,1728888646978,-3393.716704,0.00024673,7]
[340234582,1728888646988,-285.390694,0.00024673,7]
[340234583,1728888646998,-2200.0,0.0002468,2]
[340234584,1728888647007,-151.0,0.00024681,7]
[340234585,1728888647019,-151.0,0.00024681,7]
[340234586,1728888647030,-151.0,0.00024681,7]
[340234587,1728888647039,-151.0,0.00024681,7]
[340234588,1728888647048,-151.0,0.00024681,7]
[340234589,1728888647058,-151.0,0.00024681,7]
[340234590,1728888647067,-286.453,0.00024682,7]
[340234591,1728888647076,-250.0,0.00024684,2]
[340234592,1728888647086,-297.362777,0.00024685,2]
[340234593,1728888647095,-150.112234,0.000247,5]
[340234594,1728888647104,-150.112233,0.000247,3]
[340234595,1728888647113,-150.112233,0.000247,4]
[340234596,1728888647121,-1500.0,0.0002472,7]
[340234597,1728888647132,-250.0,0.00024749,2]
[340234598,1728888647141,-500.0,0.000248,7]
[340234599,1728888647151,-500.0,0.000248,7]
[340234600,1728888647159,-500.0,0.000248,7]
[340234601,1728888647168,-606.84,0.000248,7]
[340234602,1728888647178,-150.112233,0.000248,3]
[340234603,1728888647187,-150.112233,0.000248,3]
[340234604,1728888647196,-150.112233,0.000248,3]
[340234605,1728888647205,-250.0,0.00024814,2]
[340234606,1728888647214,-366.25097344,0.0002483,2]
[340234607,1728888647223,-150.112233,0.000249,2]
[340234608,1728888647233,-150.112233,0.000249,5]
[340234609,1728888647242,-150.112233,0.000249,3]
[340234610,1728888647251,-151.0,0.00024921,7]
[340234611,1728888647260,-151.0,0.00024921,7]
[340234612,1728888647270,-151.0,0.00024921,7]
[340234613,1728888647339,-184.949365,0.00024931,7]
[340234614,1728888647349,-184.949365,0.00024931,7]
[340234615,1728888647361,-500.0,0.00024931,2]
[340234616,1728888647371,-508.48497016,0.00024931,2]
[340234617,1728888647382,-500.0,0.00024931,2]
[340234618,1728888647391,-500.0,0.00024931,2]
[340234619,1728888647400,-500.0,0.00024931,2]
[340234620,1728888647409,-500.0,0.00024931,2]
[340234621,1728888647418,-500.0,0.00024931,2]
[340234622,1728888647428,-851.16,0.00024931,2]
[340234623,1728888647437,-510.35959459,0.00024931,2]
[340234624,1728888647446,-235.219078,0.00024931,7]
[340234625,1728888647456,-1000.0,0.00024931,2]
[340234626,1728888647466,-245.017774,0.00024931,7]
[340234627,1728888647475,-509.31,0.00024931,2]
[340234628,1728888647484,-151.0,0.00024931,7]
[340234629,1728888647494,-500.0,0.00024931,2]
[340234630,1728888647503,-151.0,0.00024931,7]
[340234631,1728888647512,-151.0,0.00024931,7]
[340234632,1728888647521,-151.0,0.00024931,7]
[340234633,1728888647531,-500.0,0.00024931,2]
[340234634,1728888647541,-157.0,0.00024931,3]
[340234635,1728888647553,-500.0,0.00024931,2]
[340234636,1728888647564,-151.0,0.00024931,7]
[340234637,1728888647573,-151.0,0.00024931,7]
[340234638,1728888647582,-500.0,0.00024931,2]
[340234639,1728888647590,-151.0,0.00024931,5]
[340234640,1728888647599,-151.0,0.00024931,7]
[340234641,1728888647608,-486.12509931,0.00024931,2]
[340234642,1728888647618,-500.0,0.00024931,2]
[340234643,1728888647629,-151.0,0.00024931,7]
[340234644,1728888647638,-151.0,0.00024931,7]
[340234645,1728888647648,-151.0,0.00024931,7]
[340234646,1728888647659,-1255.23,0.00024931,2]
[340234647,1728888647670,-500.0,0.00024931,2]
[340234648,1728888647681,-151.0,0.00024931,7]
[340234649,1728888647691,-500.0,0.00024931,2]
[340234650,1728888647702,-500.0,0.00024931,2]
[340234651,1728888647713,-500.0,0.00024931,2]
[340234652,1728888647723,-2000.0,0.00024931,2]
[340234653,1728888647733,-500.0,0.00024931,2]
[340234654,1728888647744,-151.0,0.00024931,7]
[340234655,1728888647754,-500.0,0.00024931,2]
[340234656,1728888647763,-500.0,0.00024931,2]
[340234657,1728888647772,-500.0,0.00024931,2]
[340234658,1728888647782,-158.844224,0.00024931,7]
[340234659,1728888647791,-158.844224,0.00024931,7]
[340234660,1728888647801,-500.0,0.00024931,2]
[340234661,1728888647810,-500.0,0.00024931,2]
[340234662,1728888647820,-500.0,0.00024931,2]
[340234663,1728888647829,-7551.44,0.00024931,2]
[340234664,1728888647838,-500.82799597,0.00024931,2]
[340234665,1728888647847,-1500.0,0.00024931,2]
[340234666,1728888647856,-500.0,0.00024931,2]
[340234667,1728888647865,-151.0,0.00024931,7]
[340234668,1728888647874,-500.0,0.00024931,2]
[340234669,1728888647883,-500.0,0.00024931,2]
[340234670,1728888647892,-500.0,0.00024931,2]
[340234671,1728888647901,-500.0,0.00024931,2]
[340234672,1728888647911,-1765.14,0.00024931,2]
[340234673,1728888647921,-151.0,0.00024931,7]
[340234674,1728888647930,-156.57171,0.00024931,7]
[340234675,1728888647939,-778.33,0.00024931,2]
[340234676,1728888647949,-151.0,0.00024931,7]
[340234677,1728888647960,-506.66931171,0.00024931,2]
[340234678,1728888647970,-500.0,0.00024931,2]
[340234679,1728888647980,-151.0,0.00024931,7]
[340234680,1728888647990,-500.0,0.00024931,2]
[340234681,1728888647999,-500.0,0.00024931,2]
[340234682,1728888648008,-609.12,0.00024931,2]
[340234683,1728888648017,-251.3304363,0.00024931,2]
[340234684,1728888648026,-500.0,0.00024931,2]
[340234685,1728888648034,-500.0,0.00024931,2]
[340234686,1728888648044,-4824.09,0.00024931,2]
[340234687,1728888648053,-315.59617064,0.00024931,2]
[340234688,1728888648062,-500.0,0.00024931,2]
[340234689,1728888648071,-500.0,0.00024931,2]
[340234690,1728888648080,-500.45381427,0.00024931,2]
[340234691,1728888648089,-5430.08,0.00024931,2]
[340234692,1728888648099,-151.0,0.00024931,7]
[340234693,1728888648108,-2965.86,0.00024931,2]
[340234694,1728888648117,-500.0,0.00024931,2]
[340234695,1728888648127,-500.0,0.00024931,2]
[340234696,1728888648137,-500.0,0.00024931,2]
[340234697,1728888648146,-500.0,0.00024931,2]
[340234698,1728888648156,-500.0,0.00024931,2]
[340234699,1728888648167,-151.0,0.00024931,7]
[340234700,1728888648177,-30352.2,0.00024931,2]
[340234701,1728888648187,-500.0,0.00024931,2]
[340234702,1728888648196,-500.0,0.00024931,2]
[340234703,1728888648206,-500.0,0.00024931,2]
[340234704,1728888648215,-1259.99,0.00024931,2]
[340234705,1728888648224,-1377.9,0.00024931,2]
[340234706,1728888648233,-500.0,0.00024931,2]
[340234707,1728888648242,-151.0,0.00024931,7]
[340234708,1728888648251,-500.0,0.00024931,2]
[340234709,1728888648261,-500.0,0.00024931,2]
[340234710,1728888648271,-3393.716704,0.00024931,7]
[340234711,1728888648280,-2017.69,0.00024931,2]
[340234712,1728888648289,-3393.716704,0.00024931,7]
[340234713,1728888648298,-500.0,0.00024931,2]
[340234714,1728888648307,-500.0,0.00024931,2]
[340234715,1728888648316,-500.0,0.00024931,2]
[340234716,1728888648325,-500.0,0.00024931,2]
[340234717,1728888648334,-545.86,0.00024931,2]
[340234718,1728888648345,-250.0,0.00024931,2]
[340234719,1728888648354,-500.0,0.00024931,2]
[340234720,1728888648365,-500.19535704,0.00024931,2]
[340234721,1728888648374,-942.06,0.00024931,2]
[340234722,1728888648384,-163.0,0.00024932,2]
[340234723,1728888648394,-500.0,0.00024973,2]
[340234724,1728888648403,-500.0,0.00024973,2]
[340234725,1728888648413,-500.0,0.00024973,2]
[340234726,1728888648422,-500.0,0.00024973,2]
[340234727,1728888648431,-529.1857098,0.00024973,2]
[340234728,1728888648441,-500.0,0.00024973,2]
[340234729,1728888648450,-500.0,0.00024973,2]
[340234730,1728888648459,-339.10500486,0.00024973,2]
[340234731,1728888648468,-500.0,0.00024973,2]
[340234732,1728888648478,-500.0,0.00024973,2]
[340234733,1728888648488,-380.30358884,0.00024973,2]
[340234734,1728888648497,-500.0,0.00024973,2]
[340234735,1728888648507,-399.18523611,0.00024973,2]
[340234736,1728888648516,-500.0,0.00024973,2]
[340234737,1728888648526,-500.0,0.00024973,2]
[340234738,1728888648535,-541.63085316,0.00024973,2]
[340234739,1728888648544,-500.0,0.00024973,2]
[340234740,1728888648554,-500.0,0.00024973,2]
[340234741,1728888648563,-506.32776406,0.00024973,2]
[340234742,1728888648573,-500.0,0.00024973,2]
[340234743,1728888648584,-301.64658132,0.00024973,2]
[340234744,1728888648593,-500.0,0.00024973,2]
[340234745,1728888648602,-275.630295,0.0002499,7]
[340234746,1728888648612,-251.221551,0.0002499,7]
[340234747,1728888648621,-1000.0,0.00025,5]
[340234748,1728888648688,-307103.8963444,0.00025,2]
[340234749,1728888648698,-25100.69479712,0.00025,2]
[340234750,1728888648707,-5322.09703583,0.00025,2]
[340234751,1728888648716,-184.949365,0.00025,7]
[340234752,1728888648726,-184.949365,0.00025,7]
[340234753,1728888648735,-163.0,0.00025,2]
[340234754,1728888648744,-170.0,0.00025,2]
[340234755,1728888648754,-151.0,0.00025,7]
[340234756,1728888648764,-151.0,0.00025,7]
[340234757,1728888648773,-151.0,0.00025,7]
[340234758,1728888648782,-151.0,0.00025,5]
[340234759,1728888648791,-151.0,0.00025,7]
[340234760,1728888648801,-151.0,0.00025,7]
[340234761,1728888648810,-3000.0,0.00025,2]
[340234762,1728888648819,-166.95251,0.00025,7]
[340234763,1728888648829,-151.0,0.00025,7]
[340234764,1728888648838,-158.844224,0.00025,7]
[340234765,1728888648847,-158.844224,0.00025,7]
[340234766,1728888648857,-150.0,0.00025,2]
[340234767,1728888648866,-265.786976,0.00025,7]
[340234768,1728888648875,-151.0,0.00025,7]
[340234769,1728888648886,-151.0,0.00025,7]
[340234770,1728888648895,-151.0,0.00025,7]
[340234771,1728888648904,-151.0,0.00025,7]
[340234772,1728888648915,-151.0,0.00025,7]
[340234773,1728888648924,-151.0,0.00025,7]
[340234774,1728888648933,-3393.716704,0.00025,7]
[340234775,1728888648944,-3393.716704,0.00025,7]
[340234776,1728888648955,-3754.7579,0.0002501,2]
[340234777,1728888648964,-501.55580678,0.00025073,2]
[340234778,1728888648975,-500.0,0.00025073,2]
[340234779,1728888648985,-315196.22488003,0.0002509,2]
[340234780,1728888648997,-184.949365,0.0002509,7]
[340234781,1728888649007,-184.949365,0.0002509,7]
[340234782,1728888649018,-151.0,0.0002509,7]
[340234783,1728888649028,-151.0,0.0002509,7]
[340234784,1728888649037,-205.879004,0.0002509,7]
[340234785,1728888649047,-151.0,0.0002509,5]
[340234786,1728888649057,-156.501168,0.0002509,7]
[340234787,1728888649066,-151.0,0.0002509,7]
[340234788,1728888649075,-151.0,0.0002509,7]
[340234789,1728888649086,-158.844224,0.0002509,7]
[340234790,1728888649095,-158.844224,0.0002509,7]
[340234791,1728888649104,-151.0,0.0002509,7]
[340234792,1728888649113,-151.0,0.0002509,7]
[340234793,1728888649123,-151.0,0.0002509,7]
[340234794,1728888649132,-151.0,0.0002509,7]
[340234795,1728888649141,-151.0,0.0002509,7]
[340234796,1728888649151,-151.0,0.0002509,7]
[340234797,1728888649160,-3393.716704,0.0002509,7]
[340234798,1728888649169,-3393.716704,0.0002509,7]